Cogmind - Beta 13 @@@ ROGUE MODE // 2024.05.22 @ 19:46:17 Player: KingCain Result: Destroyed by Y-45 Defender with Beam Rifle Performance ------------- Evolutions (1) 500 Regions Visited (2) 400 Robots Destroyed (17) 85 Value Destroyed (409) 409 Prototype IDs (0) 0 Alien Tech Used (0) 0 Bonus (0) 0 TOTAL SCORE: 1394 Bonus ------- None Cogmind --------- Core Integrity 0/400 Matter 300/300 Energy 100/100 System Corruption 0% Temperature Cool (9) Movement Core (350) Ox6 Location -9/Materials Parts ------- > --- POWER (2) -------- (None) > --- PROPULSION (3) --- (None) > --- UTILITY (2) ------ Large Storage Unit > --- WEAPON (2) ------- (None) > --- INVENTORY (15) --- Light Ion Engine Aluminum Leg Aluminum Leg Large Storage Unit Light Armor Plating Peak State ------------ > --- POWER ------------ Ion Engine Ion Engine > --- PROPULSION ------- Light Treads Light Treads Aluminum Leg > --- UTILITY ---------- Large Storage Unit Large Storage Unit > --- WEAPON ----------- EM Shotgun Light Assault Rifle > --- INVENTORY -------- Light Ion Engine Aluminum Leg Aluminum Leg Small Storage Unit Medium Storage Unit Light Armor Plating EM Pulse Gun Medium Laser [Rating: 10] Favorites ----------- Power Ion Engine Engine Ion Engine Propulsion Light Treads Treads Light Treads Leg Aluminum Leg Wheel Wheel Utility Large Storage Unit Storage Large Storage Unit Protection Light Armor Plating Weapon Light Assault Rifle Energy Gun Small Laser Ballistic Gun Light Assault Rifle Launcher Grenade Launcher Build | -11 -10 -9 ------- Run | Yrd Mat Mat Slots Evolved 2 | . . 2 Power 1 | . . 1 Propulsion 1 | . . 1 Utility . | . . . Weapon . | . . . Parts Attached 29 | 8 6 15 Power 5 | 1 1 3 Engine 5 | 1 1 3 Core . | . . . Reactor . | . . . Propulsion 9 | 4 1 4 Treads 4 | 2 1 1 Leg 3 | . . 3 Wheel 2 | 2 . . Hover . | . . . Flight . | . . . Utility 7 | 1 2 4 Device . | . . . Storage 4 | 1 . 3 Processor . | . . . Hackware . | . . . Protection 3 | . 2 1 Artifact . | . . . Weapon 8 | 2 2 4 Energy Gun 4 | 1 . 3 Energy Cannon . | . . . Ballistic Gun 2 | 1 . 1 Ballistic Cannon . | . . . Launcher 2 | . 2 . Special Weapon . | . . . Impact Weapon . | . . . Slashing Weapon . | . . . Piercing Weapon . | . . . Special Melee Weapon . | . . . Unidentified Prototypes . | . . . Parts Lost 16 | . . 16 Power 3 | . . 3 Propulsion 5 | . . 5 Utility 2 | . . 2 Weapon 6 | . . 6 Highest Loss Streak 8 | . . 8 To Critical Strikes 1 | . . 1 Average Slot Usage (%) 87 | . 88 87 Engine 18 | . 13 20 Treads 13 | . 27 9 Leg 12 | . . 16 Storage 13 | . 14 13 Protection 5 | . 3 6 Energy Gun 11 | . 14 10 Ballistic Gun 6 | . 7 6 Launcher 4 | . 6 3 Naked Turns . | . . . Heaviest Build 54 | 12 17 54 Greatest Support 40 | 40 40 40 Greatest Overweight (x) 10 | 1 . 10 Average Overweight (x) . | . . . Largest Inventory Capacity 15 | 8 8 15 Average Capacity 11 | 6 8 13 Most Carried 10 | 3 8 10 Average Carried 6 | 1 5 6 Final Capacity 15 | 8 8 15 Final Carried 8 | 3 8 5 Class Distribution -------------------- 67% | Mutant 32% | Scavenger-Mutant Dominant Class ---------------- Mutant | -10/Materials Mutant | -9/Materials Resources | -11 -10 -9 ----------- Run | Yrd Mat Mat Matter Collected 562 | 268 66 228 Remotely . | . . . Salvage Created 488 | . 104 384 Parts 39 | . 14 25 Haulers Intercepted . | . . . Recyclers Shooed . | . . . Parts Field Recycled . | . . . Retrieved Matter . | . . . Parts Self-Destructed . | . . . Prevented . | . . . Kills | -11 -10 -9 ------- Run | Yrd Mat Mat Combat Hostiles Destroyed 15 | . 6 9 Guns 13 | . 6 7 AOE 2 | . . 2 Classes Destroyed 6 | . 1 5 Worker 1 | . . 1 Builder 1 | . . 1 Swarmer 6 | . 6 . Grunt 7 | . . 7 Duelist 1 | . . 1 Sentry 1 | . . 1 Best Kill Streak 4 | . 3 4 Combat Bots Only 3 | . 3 2 Max Kills in Single Turn 1 | . 1 1 Gunslinging . | . . . Exploded 1 | . . 1 Melee . | . . . Uniques/NPCs Destroyed . | . . . Combat | -11 -10 -9 -------- Run | Yrd Mat Mat Hostile Shots Fired 195 | . 34 161 Missed 45 | . 7 38 Damage Taken 1917 | . 213 1704 Core 422 | . 16 406 Absorbed by Shields . | . . . Core Remaining (%) 96 | 100 93 . Volleys Fired 72 | . 16 56 Largest 2 | . 2 2 Hottest 70 | . 70 70 Shots Fired 112 | . 27 85 Gun 103 | . 24 79 Cannon . | . . . Launcher 9 | . 3 6 Special . | . . . Kinetic 39 | . 8 31 Thermal 35 | . 16 19 Explosive 9 | . 3 6 Electromagnetic 29 | . . 29 Robot Hit Streak 7 | . 4 7 Robot Miss Streak 5 | . 5 4 Penetration Max . | . . . Secondary Targets 1 | . 1 . Max Gunslinging Chain 1 | . 1 . Shots Hit Robots 65 | . 12 53 Core Hits 32 | . 7 25 Critical Kills . | . . . Critical Parts Destroyed . | . . . Critical Strikes . | . . . Melee Attacks . | . . . Impact . | . . . Slashing . | . . . Piercing . | . . . Sneak Attacks . | . . . Combat Hostiles . | . . . Follow-up Attacks . | . . . Damage Inflicted 1094 | . 127 967 Guns 669 | . 127 542 Cannons . | . . . Explosions 421 | . . 421 Melee . | . . . Ramming 4 | . . 4 Kinetic 199 | . 26 173 Thermal 279 | . 101 178 Explosive 356 | . . 356 Electromagnetic 256 | . . 256 Impact . | . . . Slashing . | . . . Piercing . | . . . Highest Corruption . | . . . Average Corruption . | . . . Corruption Purged . | . . . Corruption Blocked . | . . . Overload Shots . | . . . Overflow Damage 10 | . . 10 Projectiles . | . . . Explosions 10 | . . 10 Melee . | . . . Knockbacks 1 | . . 1 Impact 1 | . . 1 Kinetic . | . . . Secondary . | . . . Self-Inflicted Damage 82 | . . 82 Shots 3 | . . 3 Rammed . | . . . Targets Rammed 1 | . . 1 Kicked 1 | . . 1 Crushed . | . . . Highest Temperature 213 | . 84 213 Average Temperature 64 | . 40 71 Received Heat Transfer 711 | . . 711 Effects 1 | . . 1 Interference 1 | . . 1 Siege Activations . | . . . Robots Corrupted . | . . . Combat Hostiles . | . . . Parts Fried . | . . . Impact Corruptions . | . . . Robots Melted . | . . . Combat Hostiles . | . . . Parts Melted 1 | . 1 . Heat Transferred 599 | . 225 374 Parts Sabotaged . | . . . Parts Stolen . | . . . Parts Stripped . | . . . Power Chain Reactions 1 | . . 1 Alert | -11 -10 -9 ------- Run | Yrd Mat Mat Peak Influence 245 | . 166 245 Initial 69 | . . 69 Average 83 | . 94 92 Maximum Alert Level 1 | . . 1 Low Security (%) 95 | 100 100 93 Level 1 4 | . . 6 Level 2 . | . . . Level 3 . | . . . Level 4 . | . . . Level 5 . | . . . High Security . | . . . Max Security . | . . . Squads Dispatched 3 | . 1 2 Investigation . | . . . Extermination . | . . . Reinforcement 3 | . 1 2 Assault . | . . . Garrison . | . . . Intercept . | . . . Searches Triggered . | . . . Construction Impeded 1 | . . 1 Haulers Reinforced . | . . . Active Scanning Responses . | . . . Cargo Convoy Interrupts . | . . . Stealth | -11 -10 -9 --------- Run | Yrd Mat Mat Distress Signals 2 | . 1 1 Communications Jammed . | . . . Distress Signals . | . . . Times Spotted 31 | . 10 21 Peak Tracking Total 6 | . 3 6 Tactical Retreats 3 | . . 3 Traps | -11 -10 -9 ------- Run | Yrd Mat Mat Traps Triggered 2 | . 2 . Indirectly . | . . . Trap Hack Attempts . | . . . Triggered . | . . . Disarmed . | . . . Reprogrammed . | . . . Reused . | . . . Traps Extracted . | . . . Installed . | . . . Triggered . | . . . Machines | -11 -10 -9 ---------- Run | Yrd Mat Mat Machines Disabled . | . . . Max in Single Turn . | . . . Machines Repaired . | . . . Machines Dismantled . | . . . Machines Sabotaged . | . . . Overloaded Fab Kills . | . . . Hacking | -11 -10 -9 --------- Run | Yrd Mat Mat Machines Accessed 1 | . . 1 Terminals 1 | . . 1 Fabricators . | . . . Repair Stations . | . . . Recycling Units . | . . . Scanalyzers . | . . . Garrison Access . | . . . Total Hacks 1 | . . 1 Successful 1 | . . 1 Failed . | . . . Catastrophic . | . . . Database Lockouts . | . . . Manual 1 | . 1 . Terminals 1 | . . 1 Fabricators . | . . . Repair Stations . | . . . Recycling Units . | . . . Scanalyzers . | . . . Garrison Access . | . . . Terminal Hacks 1 | . . 1 Maintenance Status 1 | . . 1 Fabricator Hacks . | . . . Repair Station Hacks . | . . . Recycling Unit Hacks . | . . . Scanalyzer . | . . . Garrison Access Hacks . | . . . Unauthorized Hacks . | . . . Terminals . | . . . Fabricators . | . . . Repair Stations . | . . . Recycling Units . | . . . Scanalyzers . | . . . Garrison Access . | . . . Data Cores Recovered . | . . . Used . | . . . Hacking Detections 2 | . 1 1 Full Trace Events . | . . . Feedback Events . | . . . Feedback Blocked . | . . . Robot Schematics Acquired . | . . . Robots Built . | . . . Authchips . | . . . Time . | . . . Total Robot Build Rating . | . . . Part Schematics Acquired . | . . . Parts Built . | . . . Authchips . | . . . Time . | . . . Total Part Build Rating . | . . . Parts Repaired . | . . . Time . | . . . Parts Recycled . | . . . Recycled Matter . | . . . Retrieved Matter . | . . . Retrieved Components . | . . . Parts Scanalyzed . | . . . Part Schematics Acquired . | . . . Parts Damaged . | . . . Bothacking | -11 -10 -9 ------------ Run | Yrd Mat Mat Used RIF Installer . | . . . Robots Hacked . | . . . Non-combat . | . . . Combat . | . . . Robot Hacks Applied . | . . . Relay Couplers Released . | . . . Fabnet Peak Effective % . | . . . Robots Rewired . | . . . Allies Hacked . | . . . Hacks Repelled . | . . . Allies | -11 -10 -9 -------- Run | Yrd Mat Mat Total Allies . | . . . Largest Group . | . . . Highest-Rated Group . | . . . Highest-Rated Ally . | . . . Total Orders . | . . . Ally Attacks . | . . . Total Damage . | . . . Kills . | . . . Allies Corrupted . | . . . Allies Melted . | . . . Intel | -11 -10 -9 ------- Run | Yrd Mat Mat Robot Analysis Total . | . . . Derelict Logs Recovered . | . . . Drone Launches . | . . . Drone Recoveries . | . . . Exploration | -11 -10 -9 ------------- Run | Yrd Mat Mat Turns Passed 1482 | 143 331 1008 Spaces Moved 655 | 87 173 395 Core 10 | 6 . 4 Treads 439 | 71 173 195 Legs 196 | . . 196 Wheels 10 | 10 . . Hover . | . . . Flight . | . . . Fastest Speed 50 | 50 160 160 Average Speed 181 | 147 160 198 Slowest Speed 550 | 160 160 550 Overloaded Moves . | . . . Propulsion Burnouts . | . . . Robots Hopped . | . . . Cave-ins Triggered . | . . . Exploration Rate (%) 18 | 6 30 20 Regions Visited 2 Branch Regions . Pre-discovered Areas . | . . . Known Exits Taken . | . . . Unknown Exits Taken 2 | 1 1 . Scrap Searched . | . . . Spaces Dug . | . . . Terrain Destroyed 57 | . 12 45 Melee . | . . . Projectile . | . . . AOE 57 | . 12 45 Terrain Rammed . | . . . Walls Destroyed . | . . . Machines Disabled . | . . . Actions | -11 -10 -9 --------- Run | Yrd Mat Mat Total 835 | 99 199 537 Wait 64 | . . 64 Move 653 | 86 172 395 Hop . | . . . Pick Up 9 | 3 5 1 Fast Attach 21 | 8 5 8 Attach 5 | . . 5 Detach 1 | . . 1 Swap 3 | . 1 2 Drop 6 | 2 . 4 Fire 72 | . 16 56 Melee . | . . . Ram . | . . . Kick 1 | . . 1 Crush . | . . . Escape Stasis . | . . . Rewire . | . . . Trap . | . . . Miscellaneous . | . . . Route ------- -11/Scrapyard -10/Materials (discovered 2 exits: *Mat / [*Min]) -9/Materials History --------- Turn | Location | Event 24 | -11/Scrapyard | Discovered new exit (range 15) 144 | -11/Scrapyard | Entered Materials 285 | -10/Materials | Discovered new exit (range 14) 316 | -10/Materials | Build established: Mutant 459 | -10/Materials | Discovered new exit (range 8) 475 | -10/Materials | Entered another Materials area 475 | -9/Materials | Evolved 2 slots: Power x1, Propulsion x1 832 | -9/Materials | Lost 3 parts (1n2w) 1234 | -9/Materials | Build established: Scavenger-Mutant 1399 | -9/Materials | Core integrity fell below 50% 1467 | -9/Materials | Core integrity fell below 20% 1483 | -9/Materials | Destroyed by Y-45 Defender with Beam Rifle Last Messages --------------- 01374_ Lgt. Assault Rifle temporarily disabled. 01374_ Lgt. Armor Plating destroyed. 01374_ U-05 Engineer lays Concrete. 01375_ U-05 Engineer builds a Wall. 01376_ U-05 Engineer lays Concrete. 01376_ U-05 Engineer builds a Wall. 01382_ Critical hit (Burn: +37). 01387_ U-05 Engineer destroyed. 01422_ Aluminum Leg destroyed. 01428_ G-34 Mercenary destroyed. 01432_ EM Pulse Gun destroyed. 01432_ Critical hit (Destroy). 01432_ Lgt. Assault Rifle destroyed. 01439_ R-06 Scavenger collects Ion Engine. 01454_ Aluminum Leg destroyed. 01460_ Ion Engine destroyed. 01470_ Critical hit (Burn: +37). 01475_ G-34 Mercenary misfires. 01477_ Med. Laser destroyed. 01481_ G-34 Mercenary misfires. Map ----- +----------------------------------------------------+ | ??????????????? +????????? | | ??????????????????????### #????????? | | ????????????????????????# #????????? | | ????????????????????????#### ###" ""#####????????? | | ??????????????????????????## ###"R""#?##########?? | | ??????????????????????????## ###""" #?# #?? | | ?????????????????????????###%########?# """ #?? | | ?????????????????????????# = ######?# """ #?? | | ?????????????????######### !% #?# """ #?? | | ???????????? ! #?# #?? | | ???????????? ###### #?# ] #?? | | ?????????????????????????# ## #?# #?? | | ?????????????????????????######## #?# "T" #?? | | ????????????????????????????##! ### #?# | | ????????????????????????????#! # ####+###### | | ????????????????????????????# # # | | ????????????????????????????# #### | | ????????????????????????????# % | | ????????????????????????????##! #####+######## | | ?????????????????????????????#### #= = # | | ?????????????????????????????# %= ## # " | | ?????????????????????????????# ####### """ # " | | ?????????????????????????????# #?????# """ # " | | ?????????????????????????????# #?????# """ # | | ????????????????????????######+####??# """ # | | ????????????????????????#@""" #??# """ #### | | ????????????????????????#g"T" #??# ?? #??? | | ????????????????????????# g #??# ???! #??? | | ????????????????????????# Y #??###???####??? | | ????????????????????????###########??????????????? | | | | | | | | | | | | | | | | | | | | | | | | | | | | | | | | | | | | | | | | | +----------------------------------------------------+ Best States ------------- Heat Dissipation 28 Energy Generation 15 Energy Capacity 400 Matter Stores 300 Matter Capacity 300 Sight Range 16 Terrain Scan Density 10 Armor Coverage 150 Evasion (%) 42 Recoil Reduction 2 Item Schematics ----------------- None Robot Schematics ------------------ None Fabricated ------------ Nothing Alien Tech Used ----------------- None Achievements -------------- None Challenges ------------ None Game ------ Seed ThermalComponentMapper Manual? 0 Play Time 00:14:16 Cumulative 1.7 hours Start 2024.05.16 @ 23:01:59 End 2024.05.22 @ 19:46:17 Sessions 2 Manual Loads 0 Difficulty Rogue Special Mode None Game No. 4 Rogue 4 Adventurer 0 Explorer 0 Win Type - Total 0 Types 0/0/0/0/0/0/0/0/0 Lore% 2 Gallery% 5 Achievement% 4 Wizard Run 0 Options --------- Layout 0 ASCII 0 Keyboard 0 Movement Arrows Keybinds 0 Fullscreen 1 Font 18/SmallcapsGlow Map View 38x25 Zoom Use 99% Tactical HUD 1 Map Filters NONE Filters NONE Steam 1 RUN: e094e43b-940f-4d0e-a00f-9c9cc6b9b32f